[Event "*** Titled Tuesday Blitz"]
[Site "Chess.com"]
[Date "2020.04.14"]
[Round "9"]
[White "MaxVavulin"]
[Black "Volodar_Murzin"]
[Result "1-0"]
[WhiteElo "2578"]
[BlackElo "2675"]
[TimeControl "180+1"]
[EndTime "11:42:21 PDT"]
[Termination "MaxVavulin won by resignation"]

1. e4 {[%clk 0:03:00.9]} 1... c6 {[%clk 0:02:56.5]} 2. Qe2 {[%clk 0:03:00.8]}
2... d5 {[%clk 0:02:55.6]} 3. d3 {[%clk 0:03:01.5]} 3... g6 {[%clk 0:02:47.4]}
4. f4 {[%clk 0:03:01]} 4... Bg7 {[%clk 0:02:46.9]} 5. Nf3 {[%clk 0:03:01.4]}
5... e6 {[%clk 0:02:46.5]} 6. g3 {[%clk 0:03:00.9]} 6... Ne7 {[%clk 0:02:46]} 7.
Bg2 {[%clk 0:03:01.1]} 7... Nd7 {[%clk 0:02:43.6]} 8. c3 {[%clk 0:02:58.4]} 8...
O-O {[%clk 0:02:42]} 9. O-O {[%clk 0:02:58.4]} 9... b6 {[%clk 0:02:37.8]} 10.
Be3 {[%clk 0:02:57]} 10... Ba6 {[%clk 0:02:36.1]} 11. e5 {[%clk 0:02:54.5]}
11... c5 {[%clk 0:02:27.5]} 12. Nbd2 {[%clk 0:02:53.8]} 12... Rc8 {[%clk
0:02:22.6]} 13. Bf2 {[%clk 0:02:53.1]} 13... Nb8 {[%clk 0:02:09.7]} 14. g4
{[%clk 0:02:39.6]} 14... Nbc6 {[%clk 0:02:08]} 15. Bh4 {[%clk 0:02:39.3]} 15...
Qd7 {[%clk 0:01:56.8]} 16. Bf6 {[%clk 0:02:25.9]} 16... Rfe8 {[%clk 0:01:45]}
17. Bxg7 {[%clk 0:02:23.6]} 17... Kxg7 {[%clk 0:01:44.8]} 18. Rad1 {[%clk
0:02:17.7]} 18... Rh8 {[%clk 0:01:34.7]} 19. c4 {[%clk 0:02:11]} 19... h5 {[%clk
0:01:32.2]} 20. h3 {[%clk 0:02:04.8]} 20... hxg4 {[%clk 0:01:31.2]} 21. hxg4
{[%clk 0:02:05]} 21... Nd4 {[%clk 0:01:21]} 22. Nxd4 {[%clk 0:01:46.2]} 22...
cxd4 {[%clk 0:01:18.9]} 23. b3 {[%clk 0:01:37.2]} 23... Rh4 {[%clk 0:01:09]} 24.
Qf3 {[%clk 0:01:26.6]} 24... Rch8 {[%clk 0:01:05.8]} 25. Qg3 {[%clk 0:01:26.8]}
25... dxc4 {[%clk 0:00:53.8]} 26. dxc4 {[%clk 0:01:21]} 26... Bb7 {[%clk
0:00:52.9]} 27. Nf3 {[%clk 0:01:18.7]} 27... Bxf3 {[%clk 0:00:51.8]} 28. Rxf3
{[%clk 0:01:13.8]} 28... Qc7 {[%clk 0:00:39]} 29. f5 {[%clk 0:01:05.3]} 29...
exf5 {[%clk 0:00:38.5]} 30. gxf5 {[%clk 0:01:05.2]} 30... Nc6 {[%clk 0:00:22]}
31. fxg6 {[%clk 0:00:57.7]} 31... fxg6 {[%clk 0:00:20.7]} 32. Rf6 {[%clk
0:00:50.4]} 32... R4h6 {[%clk 0:00:14.8]} 33. Rxc6 {[%clk 0:00:49.1]} 33... Qe7
{[%clk 0:00:02.2]} 34. e6 {[%clk 0:00:45.3]} 34... Rh4 {[%clk 0:00:02.3]} 35.
Rc7 {[%clk 0:00:44.6]} 1-0

[Event "*** Titled Tuesday Blitz"]
[Site "Chess.com"]
[Date "2020.04.14"]
[Round "9"]
[White "LittlePeasant"]
[Black "LiemLe"]
[Result "0-1"]
[WhiteElo "2830"]
[BlackElo "3007"]
[TimeControl "180+1"]
[EndTime "11:42:22 PDT"]
[Termination "LiemLe won by resignation"]

1. d4 {[%clk 0:03:00.9]} 1... Nf6 {[%clk 0:02:59.6]} 2. c4 {[%clk 0:03:01.4]}
2... e6 {[%clk 0:03:00.3]} 3. Nc3 {[%clk 0:03:01.1]} 3... Bb4 {[%clk 0:02:59.9]}
4. Bd2 {[%clk 0:03:01.7]} 4... O-O {[%clk 0:02:59.4]} 5. e3 {[%clk 0:03:02.2]}
5... b6 {[%clk 0:02:59.3]} 6. Nf3 {[%clk 0:03:02.4]} 6... Bb7 {[%clk 0:02:59.6]}
7. Bd3 {[%clk 0:03:02.7]} 7... d5 {[%clk 0:02:59.8]} 8. cxd5 {[%clk 0:03:03]}
8... exd5 {[%clk 0:02:59.8]} 9. Rc1 {[%clk 0:03:03.3]} 9... Be7 {[%clk
0:03:00.1]} 10. Ne5 {[%clk 0:02:57.2]} 10... c5 {[%clk 0:02:57.8]} 11. O-O
{[%clk 0:02:55.7]} 11... Nc6 {[%clk 0:02:57.7]} 12. Nxc6 {[%clk 0:02:29.4]}
12... Bxc6 {[%clk 0:02:58.6]} 13. b3 {[%clk 0:02:29.7]} 13... Qd7 {[%clk
0:02:52.3]} 14. Ne2 {[%clk 0:02:28.8]} 14... Rac8 {[%clk 0:02:48.9]} 15. Bc3
{[%clk 0:02:27.4]} 15... Bb7 {[%clk 0:02:26.8]} 16. Ng3 {[%clk 0:02:10.8]} 16...
g6 {[%clk 0:02:23.4]} 17. Qe2 {[%clk 0:02:03.7]} 17... c4 {[%clk 0:02:20]} 18.
Bb1 {[%clk 0:01:56.6]} 18... b5 {[%clk 0:02:18.4]} 19. b4 {[%clk 0:01:55.1]}
19... a5 {[%clk 0:02:18.2]} 20. a3 {[%clk 0:01:54.6]} 20... axb4 {[%clk
0:02:16.2]} 21. axb4 {[%clk 0:01:55.5]} 21... Ra8 {[%clk 0:02:15.3]} 22. Qb2
{[%clk 0:01:48.5]} 22... Ra6 {[%clk 0:02:07.7]} 23. f3 {[%clk 0:01:48.1]} 23...
h5 {[%clk 0:02:04.7]} 24. Rce1 {[%clk 0:01:31.3]} 24... h4 {[%clk 0:02:01.5]}
25. Nh1 {[%clk 0:01:31.5]} 25... Re6 {[%clk 0:01:57.9]} 26. Nf2 {[%clk
0:01:30.6]} 26... Nh5 {[%clk 0:01:47.9]} 27. e4 {[%clk 0:01:23.9]} 27... Ra8
{[%clk 0:01:28.5]} 28. e5 {[%clk 0:01:18.6]} 28... Bc8 {[%clk 0:01:24.5]} 29.
Ng4 {[%clk 0:01:16.6]} 29... Rea6 {[%clk 0:01:15.4]} 30. Qd2 {[%clk 0:01:02.5]}
30... Qd8 {[%clk 0:01:13.2]} 31. Ne3 {[%clk 0:00:56.7]} 31... Bg5 {[%clk
0:01:12]} 32. Bb2 {[%clk 0:00:40]} 32... Bf4 {[%clk 0:01:08.8]} 33. Qf2 {[%clk
0:00:33.7]} 33... Ng3 {[%clk 0:01:08.9]} 34. Ng4 {[%clk 0:00:20]} 34... Nxf1
{[%clk 0:01:04]} 35. Rxf1 {[%clk 0:00:20.9]} 35... Qg5 {[%clk 0:01:01.7]} 36. g3
{[%clk 0:00:16.8]} 36... Bd2 {[%clk 0:00:56.7]} 37. Kg2 {[%clk 0:00:15.5]} 37...
c3 {[%clk 0:00:54.5]} 38. gxh4 {[%clk 0:00:13.7]} 38... Qf4 {[%clk 0:00:54.4]}
39. Nf6+ {[%clk 0:00:07.1]} 39... Rxf6 {[%clk 0:00:53.8]} 40. exf6 {[%clk
0:00:07.4]} 40... cxb2 {[%clk 0:00:52.2]} 41. Rd1 {[%clk 0:00:08.3]} 41... Bxb4
{[%clk 0:00:48.9]} 42. Qxb2 {[%clk 0:00:08.2]} 42... Bd6 {[%clk 0:00:48.6]} 43.
Kh1 {[%clk 0:00:08.8]} 43... Qxf3+ {[%clk 0:00:48.2]} 0-1

[Event "*** Titled Tuesday Blitz"]
[Site "Chess.com"]
[Date "2020.04.14"]
[Round "9"]
[White "Witik"]
[Black "IljaZaragatski"]
[Result "0-1"]
[WhiteElo "2694"]
[BlackElo "2576"]
[TimeControl "180+1"]
[EndTime "11:42:25 PDT"]
[Termination "IljaZaragatski won by resignation"]

1. d4 {[%clk 0:03:00.9]} 1... Nf6 {[%clk 0:02:58.2]} 2. c4 {[%clk 0:03:00.4]}
2... c5 {[%clk 0:02:57.4]} 3. d5 {[%clk 0:03:00.1]} 3... b5 {[%clk 0:02:57.4]}
4. Nf3 {[%clk 0:03:00.2]} 4... Bb7 {[%clk 0:02:56.5]} 5. a4 {[%clk 0:02:51.1]}
5... Qa5+ {[%clk 0:02:55.8]} 6. Bd2 {[%clk 0:02:23.6]} 6... b4 {[%clk 0:02:56]}
7. Qc2 {[%clk 0:02:11.5]} 7... g6 {[%clk 0:02:55.7]} 8. e4 {[%clk 0:02:08.8]}
8... d6 {[%clk 0:02:56.1]} 9. Be2 {[%clk 0:02:02.6]} 9... Nbd7 {[%clk
0:02:56.6]} 10. O-O {[%clk 0:02:02.4]} 10... Bg7 {[%clk 0:02:56.9]} 11. h3
{[%clk 0:02:00.6]} 11... O-O {[%clk 0:02:56.9]} 12. Bf4 {[%clk 0:02:00.5]} 12...
Qc7 {[%clk 0:02:55.5]} 13. Nbd2 {[%clk 0:01:59.1]} 13... e5 {[%clk 0:02:53.9]}
14. Bg5 {[%clk 0:01:55.5]} 14... Nh5 {[%clk 0:02:53.4]} 15. Rfe1 {[%clk
0:01:54.9]} 15... Nf4 {[%clk 0:02:46.8]} 16. Bf1 {[%clk 0:01:54.2]} 16... Rae8
{[%clk 0:02:29.8]} 17. g3 {[%clk 0:01:47.9]} 17... Nh5 {[%clk 0:02:29.5]} 18.
Bd3 {[%clk 0:01:40.5]} 18... Bc8 {[%clk 0:02:28.8]} 19. Kg2 {[%clk 0:01:33]}
19... Kh8 {[%clk 0:02:29]} 20. Nf1 {[%clk 0:01:25.3]} 20... Ndf6 {[%clk
0:02:29.1]} 21. Bd2 {[%clk 0:01:17.3]} 21... Ng8 {[%clk 0:02:27.6]} 22. Ne3
{[%clk 0:01:16.5]} 22... Bh6 {[%clk 0:02:27.6]} 23. Nh4 {[%clk 0:00:49.7]} 23...
Qd8 {[%clk 0:02:25.6]} 24. Ng4 {[%clk 0:00:47.4]} 24... Bxd2 {[%clk 0:02:21.2]}
25. Qxd2 {[%clk 0:00:47.3]} 25... Ng7 {[%clk 0:01:54.2]} 26. Nh6 {[%clk
0:00:44.5]} 26... f5 {[%clk 0:01:36.2]} 27. Nxg8 {[%clk 0:00:37.9]} 27... Kxg8
{[%clk 0:01:35.7]} 28. exf5 {[%clk 0:00:35.5]} 28... gxf5 {[%clk 0:01:36]} 29.
f4 {[%clk 0:00:35.3]} 29... Qf6 {[%clk 0:01:19.4]} 30. b3 {[%clk 0:00:22.4]}
30... e4 {[%clk 0:01:11.6]} 31. Bf1 {[%clk 0:00:21.6]} 31... Bd7 {[%clk
0:01:11.6]} 32. Kh2 {[%clk 0:00:21.9]} 32... Re7 {[%clk 0:01:11.2]} 33. Ng2
{[%clk 0:00:22]} 33... Nh5 {[%clk 0:01:06.8]} 34. Ne3 {[%clk 0:00:21.6]} 34...
Rg7 {[%clk 0:01:07]} 35. Be2 {[%clk 0:00:19.2]} 35... Nxg3 {[%clk 0:01:05.9]}
36. Rg1 {[%clk 0:00:19.3]} 36... Qh4 {[%clk 0:01:03.4]} 37. Ng2 {[%clk
0:00:18.7]} 37... Qh6 {[%clk 0:01:02.3]} 38. Qe3 {[%clk 0:00:16.7]} 38... Nxe2
{[%clk 0:01:00.4]} 39. Qxe2 {[%clk 0:00:16.7]} 39... Kh8 {[%clk 0:00:58.7]} 40.
Qf2 {[%clk 0:00:16.6]} 40... Rg4 {[%clk 0:00:54.6]} 41. Ne3 {[%clk 0:00:15.9]}
41... Qxf4+ {[%clk 0:00:52.4]} 42. Qxf4 {[%clk 0:00:15.5]} 42... Rxf4 {[%clk
0:00:53.3]} 43. Kg3 {[%clk 0:00:15.8]} 43... Rf3+ {[%clk 0:00:53]} 0-1

[Event "*** Titled Tuesday Blitz"]
[Site "Chess.com"]
[Date "2020.04.14"]
[Round "9"]
[White "korbul"]
[Black "Filip_Covic"]
[Result "1-0"]
[WhiteElo "2524"]
[BlackElo "2322"]
[TimeControl "180+1"]
[EndTime "11:42:26 PDT"]
[Termination "korbul won by resignation"]

1. d4 {[%clk 0:03:00.9]} 1... Nf6 {[%clk 0:02:58.4]} 2. c4 {[%clk 0:03:00.1]}
2... e6 {[%clk 0:02:55.5]} 3. Nf3 {[%clk 0:02:59.4]} 3... Bb4+ {[%clk
0:02:51.6]} 4. Nbd2 {[%clk 0:02:58.7]} 4... b6 {[%clk 0:02:51.2]} 5. a3 {[%clk
0:02:56.4]} 5... Bxd2+ {[%clk 0:02:35.9]} 6. Bxd2 {[%clk 0:02:56.4]} 6... O-O
{[%clk 0:02:27.2]} 7. Bg5 {[%clk 0:02:53.4]} 7... Bb7 {[%clk 0:02:25.6]} 8. e3
{[%clk 0:02:53.3]} 8... a5 {[%clk 0:02:23.6]} 9. b3 {[%clk 0:02:52.5]} 9... d6
{[%clk 0:02:20.9]} 10. Be2 {[%clk 0:02:51.8]} 10... Nbd7 {[%clk 0:02:12.4]} 11.
O-O {[%clk 0:02:51.2]} 11... h6 {[%clk 0:02:09.6]} 12. Bh4 {[%clk 0:02:50.1]}
12... Qe7 {[%clk 0:02:09.8]} 13. Rc1 {[%clk 0:02:48.4]} 13... e5 {[%clk
0:02:09.9]} 14. d5 {[%clk 0:02:44.6]} 14... Rfe8 {[%clk 0:02:05.2]} 15. Nd2
{[%clk 0:02:43.4]} 15... Nf8 {[%clk 0:01:57.9]} 16. f3 {[%clk 0:02:40]} 16... g5
{[%clk 0:01:47.9]} 17. Bf2 {[%clk 0:02:39.3]} 17... Ng6 {[%clk 0:01:41.9]} 18.
Qc2 {[%clk 0:02:38.9]} 18... Kg7 {[%clk 0:01:34.6]} 19. b4 {[%clk 0:02:36.7]}
19... axb4 {[%clk 0:01:20.4]} 20. axb4 {[%clk 0:02:36.5]} 20... Ra7 {[%clk
0:00:37]} 21. Ra1 {[%clk 0:02:32.4]} 21... Rea8 {[%clk 0:00:36.3]} 22. Qb2
{[%clk 0:02:24]} 22... Qd8 {[%clk 0:00:28.9]} 23. Rfc1 {[%clk 0:02:22.9]} 23...
Rxa1 {[%clk 0:00:26.1]} 24. Rxa1 {[%clk 0:02:22.4]} 24... Rxa1+ {[%clk
0:00:26.3]} 25. Qxa1 {[%clk 0:02:22.4]} 25... Qa8 {[%clk 0:00:26.9]} 26. Qxa8
{[%clk 0:02:18.6]} 26... Bxa8 {[%clk 0:00:27.8]} 27. b5 {[%clk 0:02:14.6]} 27...
Nd7 {[%clk 0:00:17.6]} 28. Nb1 {[%clk 0:02:10.1]} 28... f5 {[%clk 0:00:15.5]}
29. Nc3 {[%clk 0:02:09.3]} 29... Kf6 {[%clk 0:00:14.2]} 30. Na2 {[%clk 0:02:09]}
30... Nb8 {[%clk 0:00:08.4]} 31. Nb4 {[%clk 0:02:08.4]} 31... Ne7 {[%clk
0:00:08.5]} 32. Be1 {[%clk 0:02:06.7]} 32... Kf7 {[%clk 0:00:06.8]} 33. Bc3
{[%clk 0:02:05.9]} 33... Ke8 {[%clk 0:00:06.5]} 34. f4 {[%clk 0:02:03.2]} 34...
exf4 {[%clk 0:00:06.3]} 35. exf4 {[%clk 0:02:03]} 35... g4 {[%clk 0:00:07]} 36.
h3 {[%clk 0:01:57.9]} 36... h5 {[%clk 0:00:07]} 37. Kf2 {[%clk 0:01:57.3]} 37...
Kf7 {[%clk 0:00:06.8]} 38. hxg4 {[%clk 0:01:54.4]} 38... hxg4 {[%clk 0:00:06.6]}
39. Kg3 {[%clk 0:01:54.5]} 39... Ng6 {[%clk 0:00:06.2]} 40. Bd3 {[%clk
0:01:50.9]} 40... Ne7 {[%clk 0:00:06.3]} 41. Kh4 {[%clk 0:01:50.3]} 41... Kg6
{[%clk 0:00:06.8]} 42. Nc2 {[%clk 0:01:41.7]} 42... Bb7 {[%clk 0:00:06.8]} 43.
Ne3 {[%clk 0:01:41.3]} 43... Bc8 {[%clk 0:00:07.1]} 44. Nxg4 {[%clk 0:01:41.4]}
44... Nd7 {[%clk 0:00:04]} 45. Ne3 {[%clk 0:01:38.9]} 45... Nf6 {[%clk
0:00:04.5]} 46. g4 {[%clk 0:01:35.8]} 46... Ne4 {[%clk 0:00:04.9]} 47. Bxe4
{[%clk 0:01:33]} 47... fxe4 {[%clk 0:00:04.1]} 48. f5+ {[%clk 0:01:33.1]} 48...
Kf7 {[%clk 0:00:03.4]} 49. Kg5 {[%clk 0:01:32.4]} 49... Ng8 {[%clk 0:00:03.3]}
50. Bd4 {[%clk 0:01:27.6]} 50... Ne7 {[%clk 0:00:02.1]} 51. Ng2 {[%clk
0:01:26.5]} 51... Bd7 {[%clk 0:00:02.4]} 52. Nf4 {[%clk 0:01:26]} 52... Be8
{[%clk 0:00:01.1]} 53. Ne6 {[%clk 0:01:25.6]} 53... Bd7 {[%clk 0:00:01.5]} 54.
Nxc7 {[%clk 0:01:25.3]} 1-0

[Event "*** Titled Tuesday Blitz"]
[Site "Chess.com"]
[Date "2020.04.14"]
[Round "9"]
[White "VolodymyrMolyboha"]
[Black "Alkhoori90"]
[Result "1-0"]
[WhiteElo "2453"]
[BlackElo "2093"]
[TimeControl "180+1"]
[EndTime "11:42:26 PDT"]
[Termination "VolodymyrMolyboha won by resignation"]

1. e4 {[%clk 0:02:59.7]} 1... d5 {[%clk 0:02:59.9]} 2. e5 {[%clk 0:02:59.3]}
2... c5 {[%clk 0:03:00.1]} 3. d4 {[%clk 0:02:59.4]} 3... cxd4 {[%clk 0:03:00]}
4. Qxd4 {[%clk 0:02:59.6]} 4... Nc6 {[%clk 0:02:59.4]} 5. Bb5 {[%clk 0:02:59.6]}
5... e6 {[%clk 0:02:53.8]} 6. c4 {[%clk 0:02:58.4]} 6... Qa5+ {[%clk 0:02:42.7]}
7. Nc3 {[%clk 0:02:57.8]} 7... Bb4 {[%clk 0:02:32.4]} 8. Bxc6+ {[%clk
0:02:46.9]} 8... bxc6 {[%clk 0:02:33.2]} 9. cxd5 {[%clk 0:02:37.5]} 9... cxd5
{[%clk 0:02:29.4]} 10. Bd2 {[%clk 0:02:33.3]} 10... Ne7 {[%clk 0:02:26]} 11. a3
{[%clk 0:02:29.6]} 11... Ba6 {[%clk 0:02:23.3]} 12. Qxb4 {[%clk 0:02:26.9]}
12... Qc7 {[%clk 0:02:21.3]} 13. Qa4+ {[%clk 0:02:20.5]} 13... Nc6 {[%clk
0:02:15.2]} 14. Qxa6 {[%clk 0:02:16.8]} 14... Qxe5+ {[%clk 0:02:15.2]} 15. Qe2
{[%clk 0:02:15.2]} 15... Qc7 {[%clk 0:02:13.8]} 16. Nf3 {[%clk 0:02:14.9]} 16...
O-O {[%clk 0:02:13.5]} 17. O-O {[%clk 0:02:14.2]} 17... Rab8 {[%clk 0:02:13.4]}
18. b4 {[%clk 0:02:06.8]} 18... Rfd8 {[%clk 0:02:10.1]} 19. Rac1 {[%clk
0:02:06.8]} 19... Qd6 {[%clk 0:02:05.3]} 20. Nb5 {[%clk 0:02:03.6]} 20... Qd7
{[%clk 0:02:04.3]} 21. Nbd4 {[%clk 0:01:56.4]} 21... Ne7 {[%clk 0:01:57.8]} 22.
Bf4 {[%clk 0:01:54.8]} 22... Ra8 {[%clk 0:01:53.1]} 23. Ne5 {[%clk 0:01:54.3]}
23... Qa4 {[%clk 0:01:51.5]} 24. Rfe1 {[%clk 0:01:41.9]} 24... Rf8 {[%clk
0:01:45.6]} 25. Rc3 {[%clk 0:01:38.6]} 25... a5 {[%clk 0:01:39.8]} 26. Qc2
{[%clk 0:01:33.3]} 26... axb4 {[%clk 0:01:34.7]} 27. Qxa4 {[%clk 0:01:30.6]}
27... Rxa4 {[%clk 0:01:35.6]} 28. axb4 {[%clk 0:01:29.8]} 28... Rxb4 {[%clk
0:01:36.5]} 29. Be3 {[%clk 0:01:24.1]} 29... f6 {[%clk 0:01:31.6]} 30. Nxe6
{[%clk 0:01:11.8]} 30... fxe5 {[%clk 0:01:29.6]} 31. Nxf8 {[%clk 0:01:11.2]}
31... d4 {[%clk 0:01:18.1]} 32. Rc7 {[%clk 0:01:05.2]} 32... Nd5 {[%clk
0:01:07.4]} 33. Rc8 {[%clk 0:01:00.4]} 33... dxe3 {[%clk 0:00:58.4]} 34. fxe3
{[%clk 0:01:00.3]} 34... Ne7 {[%clk 0:00:54.8]} 35. Ra8 {[%clk 0:00:58.6]} 35...
Nd5 {[%clk 0:00:48.1]} 36. Rf1 {[%clk 0:00:54.8]} 36... h6 {[%clk 0:00:41.8]}
37. h4 {[%clk 0:00:43.1]} 37... Nxe3 {[%clk 0:00:41.2]} 38. Ng6+ {[%clk
0:00:39]} 38... Kh7 {[%clk 0:00:40.6]} 39. h5 {[%clk 0:00:36.4]} 1-0

[Event "*** Titled Tuesday Blitz"]
[Site "Chess.com"]
[Date "2020.04.14"]
[Round "9"]
[White "kungmongmanh"]
[Black "Zubrrr"]
[Result "0-1"]
[WhiteElo "2583"]
[BlackElo "2718"]
[TimeControl "180+1"]
[EndTime "11:42:27 PDT"]
[Termination "Zubrrr won by resignation"]

1. d4 {[%clk 0:03:00.9]} 1... d5 {[%clk 0:02:57]} 2. c4 {[%clk 0:03:00.3]} 2...
dxc4 {[%clk 0:02:50]} 3. Nc3 {[%clk 0:03:00]} 3... c5 {[%clk 0:02:48.7]} 4. d5
{[%clk 0:02:57.4]} 4... e6 {[%clk 0:02:49.1]} 5. e4 {[%clk 0:02:56.2]} 5... exd5
{[%clk 0:02:48.9]} 6. Qxd5 {[%clk 0:02:55.9]} 6... Qxd5 {[%clk 0:02:42.7]} 7.
Nxd5 {[%clk 0:02:55.3]} 7... Bd6 {[%clk 0:02:42.8]} 8. Bxc4 {[%clk 0:02:51.7]}
8... Ne7 {[%clk 0:02:42.7]} 9. Nxe7 {[%clk 0:02:48.2]} 9... Kxe7 {[%clk
0:02:42.3]} 10. Ne2 {[%clk 0:02:45.1]} 10... Nc6 {[%clk 0:02:40.2]} 11. Bf4
{[%clk 0:02:43.4]} 11... Rd8 {[%clk 0:02:37.6]} 12. O-O {[%clk 0:02:28.7]} 12...
Be6 {[%clk 0:02:33.9]} 13. Bxe6 {[%clk 0:02:20.9]} 13... Kxe6 {[%clk 0:02:34.8]}
14. Rfe1 {[%clk 0:02:14.9]} 14... Nb4 {[%clk 0:02:11.4]} 15. Bxd6 {[%clk
0:02:12.3]} 15... Rxd6 {[%clk 0:02:10.5]} 16. Rec1 {[%clk 0:01:27]} 16... Rad8
{[%clk 0:01:32.4]} 17. g3 {[%clk 0:00:59.7]} 17... Nd3 {[%clk 0:01:18.7]} 18.
Rc2 {[%clk 0:00:58.5]} 18... f5 {[%clk 0:00:43.2]} 19. exf5+ {[%clk 0:00:53.4]}
19... Kxf5 {[%clk 0:00:44.1]} 20. Kg2 {[%clk 0:00:46.5]} 20... b6 {[%clk
0:00:41.6]} 21. a3 {[%clk 0:00:46.1]} 21... g5 {[%clk 0:00:38.7]} 22. h3 {[%clk
0:00:43.6]} 22... h5 {[%clk 0:00:38.2]} 23. Nc3 {[%clk 0:00:32.4]} 23... Re6
{[%clk 0:00:32.6]} 24. Rd1 {[%clk 0:00:26.5]} 24... Ne1+ {[%clk 0:00:29.7]} 25.
Rxe1 {[%clk 0:00:26.4]} 25... Rxe1 {[%clk 0:00:28.5]} 26. Nb5 {[%clk 0:00:26.7]}
26... g4 {[%clk 0:00:17.3]} 27. hxg4+ {[%clk 0:00:24.1]} 27... hxg4 {[%clk
0:00:18.2]} 28. Rc4 {[%clk 0:00:17]} 28... Rdd1 {[%clk 0:00:16.1]} 29. Rf4+
{[%clk 0:00:13.3]} 29... Kg5 {[%clk 0:00:16.1]} 0-1

[Event "*** Titled Tuesday Blitz"]
[Site "Chess.com"]
[Date "2020.04.14"]
[Round "9"]
[White "BAS8892"]
[Black "PotapovaM"]
[Result "1-0"]
[WhiteElo "2665"]
[BlackElo "2527"]
[TimeControl "180+1"]
[EndTime "11:42:29 PDT"]
[Termination "BAS8892 won by resignation"]

1. d4 {[%clk 0:03:00.9]} 1... Nf6 {[%clk 0:03:00]} 2. Bf4 {[%clk 0:03:00.3]}
2... g6 {[%clk 0:02:56.7]} 3. Nc3 {[%clk 0:02:59.9]} 3... d5 {[%clk 0:02:56.1]}
4. e3 {[%clk 0:02:59.7]} 4... Bg7 {[%clk 0:02:55.8]} 5. h4 {[%clk 0:02:59.7]}
5... h6 {[%clk 0:02:54.1]} 6. Nf3 {[%clk 0:02:57.8]} 6... Bg4 {[%clk 0:02:47.4]}
7. Qd2 {[%clk 0:02:56.2]} 7... Bxf3 {[%clk 0:02:37.8]} 8. gxf3 {[%clk
0:02:56.1]} 8... c6 {[%clk 0:02:35.1]} 9. O-O-O {[%clk 0:02:54.3]} 9... Nbd7
{[%clk 0:02:27.4]} 10. Bd3 {[%clk 0:02:53.6]} 10... Qa5 {[%clk 0:02:23]} 11.
Rdg1 {[%clk 0:02:52.2]} 11... O-O-O {[%clk 0:02:16.7]} 12. Kb1 {[%clk
0:02:51.9]} 12... Rhe8 {[%clk 0:02:15.1]} 13. Be5 {[%clk 0:02:48.6]} 13... Nxe5
{[%clk 0:02:11.3]} 14. dxe5 {[%clk 0:02:48.5]} 14... Nd7 {[%clk 0:02:09.8]} 15.
f4 {[%clk 0:02:48.4]} 15... Nc5 {[%clk 0:01:40.3]} 16. h5 {[%clk 0:02:47.1]}
16... d4 {[%clk 0:01:14.7]} 17. exd4 {[%clk 0:02:38.1]} 17... Na4 {[%clk
0:00:58.4]} 18. hxg6 {[%clk 0:02:34.6]} 18... Qb4 {[%clk 0:00:57.4]} 19. Qc1
{[%clk 0:02:08.5]} 19... Nxc3+ {[%clk 0:00:54.2]} 20. Ka1 {[%clk 0:02:08.6]}
20... Na4 {[%clk 0:00:49.6]} 21. c3 {[%clk 0:02:06.7]} 21... Qa5 {[%clk
0:00:45.7]} 22. gxf7 {[%clk 0:02:05.8]} 22... Bf8 {[%clk 0:00:23.7]} 23. fxe8=Q
{[%clk 0:02:04.8]} 23... Rxe8 {[%clk 0:00:24.6]} 24. Bc2 {[%clk 0:01:58.4]}
24... Nb6 {[%clk 0:00:19.9]} 25. Bb3 {[%clk 0:01:58]} 25... e6 {[%clk
0:00:19.8]} 26. Rg6 {[%clk 0:01:55.8]} 26... Kd7 {[%clk 0:00:19.4]} 27. f5
{[%clk 0:01:54]} 27... exf5 {[%clk 0:00:17.9]} 28. Qf4 {[%clk 0:01:54.1]} 28...
Kd8 {[%clk 0:00:15.6]} 29. Qxf5 {[%clk 0:01:54.1]} 29... Be7 {[%clk 0:00:15.9]}
30. Rgxh6 {[%clk 0:01:52.6]} 30... Nd5 {[%clk 0:00:13.8]} 31. Rh8 {[%clk
0:01:50.7]} 31... Rxh8 {[%clk 0:00:08.4]} 32. Rxh8+ {[%clk 0:01:49.9]} 32... Kc7
{[%clk 0:00:09.3]} 33. Rh7 {[%clk 0:01:47.7]} 33... Kb6 {[%clk 0:00:07.5]} 34.
Bxd5 {[%clk 0:01:43.8]} 34... Ba3 {[%clk 0:00:04.7]} 35. Rxb7+ {[%clk
0:01:41.8]} 35... Ka6 {[%clk 0:00:02.1]} 36. Qd3+ {[%clk 0:01:40.6]} 36... Kxb7
{[%clk 0:00:02.2]} 37. Bb3 {[%clk 0:01:33.3]} 37... Be7 {[%clk 0:00:01.7]} 38.
f4 {[%clk 0:01:31.7]} 38... Qc7 {[%clk 0:00:02.2]} 39. f5 {[%clk 0:01:31.4]}
39... Qd7 {[%clk 0:00:02.7]} 40. f6 {[%clk 0:01:31.2]} 40... Bd8 {[%clk
0:00:03.2]} 41. a3 {[%clk 0:01:30.7]} 41... Qg4 {[%clk 0:00:02.9]} 42. Ka2
{[%clk 0:01:29]} 42... Qf4 {[%clk 0:00:03.3]} 43. Ba4 {[%clk 0:01:25]} 43... Kc7
{[%clk 0:00:03.3]} 44. Qc4 {[%clk 0:01:24.9]} 44... Qf3 {[%clk 0:00:03.1]} 45.
Bxc6 {[%clk 0:01:23.8]} 45... Qxc6 {[%clk 0:00:02.6]} 46. Qxc6+ {[%clk
0:01:23.8]} 46... Kxc6 {[%clk 0:00:03.5]} 47. c4 {[%clk 0:01:23]} 47... Bc7
{[%clk 0:00:02.1]} 48. b4 {[%clk 0:01:22.5]} 48... Bb6 {[%clk 0:00:02.1]} 49. f7
{[%clk 0:01:18.6]} 1-0